Cogmind - Beta 16 @@@ ROGUE MODE // 2025.11.05 @ 19:38:15 Player: Humbble Result: Destroyed by Y-45 Defender with Heavy Assault Rifle Performance ------------- Evolutions (1) 500 Regions Visited (3) 600 Robots Destroyed (49) 245 Value Destroyed (1263) 1263 Prototype IDs (4) 80 Alien Tech Used (0) 0 Bonus (447) 447 TOTAL SCORE: 3135 Bonus ------- High Alert Combat Kills 112 Follower Combat Kills 335 Cogmind --------- Core Integrity 0/400 Matter 204/300 Energy 280/280 System Corruption 1% Temperature Cool (28) Movement Treading (160) Location -9/Storage Parts ------- > --- POWER (1) -------- Cooled Ion Engine > --- PROPULSION (3) --- Light Treads > --- UTILITY (3) ------ Terrain Scan Processor > --- WEAPON (2) ------- (None) > --- INVENTORY (5) ---- Cooled Ion Engine Aluminum Leg Aluminum Leg Medium Storage Unit Peak State ------------ > --- POWER ------------ Cooled Ion Engine > --- PROPULSION ------- Aluminum Leg Improved Aluminum Leg Improved Aluminum Leg > --- UTILITY ---------- Medium Storage Unit Improved Terrain Scanner Improved Targeting Computer > --- WEAPON ----------- Improved Assault Rifle Improved Assault Rifle > --- INVENTORY -------- Cooled Ion Engine Cooled Ion Engine Light Treads Light Treads Improved Treads Aluminum Leg Aluminum Leg Sensor Array Light Armor Plating Mini Grenade Launcher [Rating: 21] Favorites ----------- Power Cooled Ion Engine Engine Cooled Ion Engine Power Core Light Nuclear Core Propulsion Aluminum Leg Treads Light Treads Leg Aluminum Leg Utility Improved Terrain Scanner Device Improved Terrain Scanner Storage Small Storage Unit Processor Improved Targeting Computer Protection Light Armor Plating Weapon Improved Assault Rifle Energy Gun Small Laser Ballistic Gun Improved Assault Rifle Launcher Mini Grenade Launcher Build | -11 -10 -9 -9 ------- Run | Yrd Mat Mat Sto Slots Evolved 2 | . . 2 . Power . | . . . . Propulsion 1 | . . 1 . Utility 1 | . . 1 . Weapon . | . . . . Parts Attached 46 | 6 9 8 23 Power 8 | 1 2 2 3 Engine 7 | 1 1 2 3 Core 1 | . 1 . . Reactor . | . . . . Propulsion 18 | 2 4 3 9 Treads 3 | . . . 3 Leg 15 | 2 4 3 6 Wheel . | . . . . Hover . | . . . . Flight . | . . . . Utility 10 | 2 1 2 5 Device 3 | 1 . 1 1 Storage 2 | 1 . . 1 Processor 3 | . 1 1 1 Hackware . | . . . . Protection 2 | . . . 2 Artifact . | . . . . Weapon 10 | 1 2 1 6 Energy Gun 3 | . 2 1 . Energy Cannon . | . . . . Ballistic Gun 5 | 1 . . 4 Ballistic Cannon . | . . . . Launcher 2 | . . . 2 Special Weapon . | . . . . Impact Weapon . | . . . . Slashing Weapon . | . . . . Piercing Weapon . | . . . . Special Melee Weapon . | . . . . Unidentified Prototypes 2 | . . . 2 Parts Lost 25 | . 3 7 15 Power 3 | . 1 2 . Propulsion 9 | . . 3 6 Utility 6 | . 1 . 5 Weapon 7 | . 1 2 4 Highest Loss Streak 11 | . 2 5 11 To Critical Strikes 1 | . . . 1 Average Backups 7 | 3 7 7 8 Power 1 | . 1 . 1 Propulsion 4 | 1 4 5 4 Utility 1 | . 1 . 1 Weapon . | 1 . . 1 Tool/Special . | . . . . Unused Backups 7 | . 2 . 5 Power 4 | . 1 . 3 Propulsion 2 | . 1 . 1 Utility 1 | . . . 1 Weapon . | . . . . Tool/Special . | . . . . Average Slot Usage (%) 94 | . 97 86 96 Engine 10 | . 14 3 11 Leg 29 | . 28 27 30 Device 9 | . 5 10 10 Storage 11 | . 14 11 10 Processor 8 | . 7 11 7 Protection 1 | . . . 2 Energy Gun 5 | . 12 12 . Ballistic Gun 12 | . 14 8 13 Launcher 3 | . . . 6 Peak Build Rating 21 | 6 9 13 21 Average Rating 13 | 4 7 11 17 On Entrance 6 | . 6 9 11 Avg Prop Armor Cover (%) . | . . . . Naked Turns . | . . . . Heaviest Build 28 | 12 14 13 28 Greatest Support 36 | 20 20 30 36 Greatest Overweight (x) 6 | . . 3 6 Average Overweight (x) . | . . . . Largest Inventory Capacity 10 | 8 8 8 10 Average Capacity 8 | 7 8 8 9 Most Carried 10 | 6 8 8 10 Average Carried 7 | 3 7 7 8 Final Capacity 8 | 8 8 8 5 Final Carried 7 | 6 7 6 4 Class Distribution -------------------- 63% | Mutant 36% | Scavenger-Mutant Dominant Class ---------------- Mutant | -10/Materials Scavenger-Mutant | -9/Materials Mutant | -9/Storage Resources | -11 -10 -9 -9 ----------- Run | Yrd Mat Mat Sto Matter Collected 1068 | 176 207 71 614 Remotely . | . . . . Salvage Created 1396 | 17 560 174 645 Parts 91 | 5 22 14 50 Haulers Intercepted . | . . . . Recyclers Shooed 6 | 1 . 2 3 Parts Field Recycled . | . . . . Retrieved Matter . | . . . . Parts Self-Destructed . | . . . . Prevented . | . . . . Parts Restored . | . . . . Kills | -11 -10 -9 -9 ------- Run | Yrd Mat Mat Sto Combat Hostiles Destroyed 39 | . 11 6 22 Guns 28 | . 11 6 11 AOE 11 | . . . 11 Classes Destroyed 12 | 1 2 2 7 Worker 1 | . . . 1 Builder 1 | . . . 1 Tunneler 1 | 1 . . . Recycler 3 | . 1 . 2 Mechanic 2 | . . . 2 Operator 1 | . . . 1 Watcher 1 | . . . 1 Swarmer 12 | . . 3 9 Grunt 20 | . 11 2 7 Brawler 1 | . . . 1 Duelist 1 | . . . 1 Sentry 5 | . . 1 4 Best Kill Streak 8 | 1 6 3 8 Combat Bots Only 7 | . 4 3 7 Max Kills in Single Turn 5 | 1 1 1 5 Gunslinging . | . . . . Exploded 5 | . . . 5 Melee . | . . . . Uniques/NPCs Destroyed . | . . . . Combat | -11 -10 -9 -9 -------- Run | Yrd Mat Mat Sto Hostile Shots Fired 351 | . 71 62 218 Missed 106 | . 20 15 71 Hits 245 | . 51 47 147 Melee 9 | . . . 9 Projectile 236 | . 51 47 138 Critical Strikes 9 | . . 1 8 Damage Taken 3370 | . 562 514 2294 Core 519 | . 115 103 301 Absorbed by Shields . | . . . . Core Remaining (%) 77 | 100 54 . . Volleys Fired 169 | 5 38 40 86 Largest 2 | 1 2 2 2 Hottest 96 | 20 60 96 53 Shots Fired 253 | 5 75 65 108 Gun 231 | 5 75 65 86 Cannon . | . . . . Launcher 22 | . . . 22 Special . | . . . . Kinetic 152 | 5 38 24 85 Thermal 69 | . 27 41 1 Explosive 22 | . . . 22 Electromagnetic 10 | . 10 . . Robot Hit Streak 32 | 4 19 11 32 Robot Miss Streak 4 | 1 2 2 4 Penetration Max . | . . . . Secondary Targets 4 | . 3 . 1 Max Gunslinging Chain 1 | . 1 . 1 Shots Hit Robots 178 | 4 58 46 70 Core Hits 93 | 2 27 10 54 Critical Kills . | . . . . Critical Parts Destroyed 1 | . . . 1 Critical Strikes 2 | . 1 . 1 Destroy 1 | . . . 1 Corrupt 1 | . 1 . . Melee Attacks . | . . . . Impact . | . . . . Slashing . | . . . . Piercing . | . . . . Sneak Attacks . | . . . . Combat Hostiles . | . . . . Follow-up Attacks . | . . . . Damage Inflicted 3531 | 31 652 386 2462 Guns 2060 | 31 588 386 1055 Cannons . | . . . . Explosions 1471 | . 64 . 1407 Melee . | . . . . Ramming . | . . . . Kinetic 1458 | 31 232 140 1055 Thermal 562 | . 316 246 . Explosive 1407 | . . . 1407 Electromagnetic 104 | . 104 . . Impact . | . . . . Slashing . | . . . . Piercing . | . . . . Highest Corruption 1 | . . . 1 Average Corruption 1 | . . . 1 Corruption Purged . | . . . . Corruption Blocked . | . . . . Overload Shots . | . . . . Overflow Damage 32 | . . . 32 Projectiles . | . . . . Explosions 32 | . . . 32 Melee . | . . . . Knockbacks . | . . . . Impact . | . . . . Kinetic . | . . . . Secondary . | . . . . Self-Inflicted Damage 112 | . 7 . 105 Shots 4 | . 1 . 3 Rammed . | . . . . Targets Rammed . | . . . . Kicked . | . . . . Crushed . | . . . . Highest Temperature 232 | . 116 232 24 Average Temperature 49 | . 37 72 5 Received Heat Transfer 1233 | . 255 204 774 Effects 3 | . . 3 . Energy Bleed 1 | . . 1 . Interference 2 | . . 2 . Siege Activations . | . . . . Martial Activations . | . . . . Shielding Activations . | . . . . Robots Disrupted . | . . . . Combat Hostiles . | . . . . Robots Corrupted . | . . . . Combat Hostiles . | . . . . Parts Fried . | . . . . Impact Corruptions . | . . . . Robots Melted . | . . . . Combat Hostiles . | . . . . Parts Melted 2 | . . 2 . Heat Transferred 1272 | . 675 597 . Parts Sabotaged . | . . . . Parts Stolen . | . . . . Parts Stripped . | . . . . Power Chain Reactions 2 | . 2 . . Alert | -11 -10 -9 -9 ------- Run | Yrd Mat Mat Sto Maximum Alert Level 3 | . . . 3 Low Security (%) 73 | 100 100 100 48 Level 1 2 | . . . 4 Level 2 8 | . . . 15 Level 3 16 | . . . 31 Level 4 . | . . . . Level 5 . | . . . . High Security . | . . . . Max Security . | . . . . Peak Influence 783 | 5 122 55 783 Initial 49 | . . 49 3 Average 207 | . 54 26 368 Influence Increases 1661 | 5 304 155 1197 Destroy 0b10 Robot/C 1040 | . 220 120 700 Destroy 0b10 Robot/NC 55 | 5 5 . 45 Destroy Leader 234 | . 50 30 154 Allied During Kill 65 | . . . 65 Successful Hack 29 | . 7 5 17 Disable Machine 60 | . . . 60 Destroy Structure 148 | . 7 . 141 Lose Combat Pursuer 30 | . 15 . 15 Influence Decreases 1021 | 5 187 262 567 Entered New Map 75 | . . 68 7 Time Decay 661 | 5 157 129 370 Lost Part 245 | . 30 65 150 Lost Ally 40 | . . . 40 Squads Dispatched 10 | . 3 1 6 Investigation 2 | . 1 . 1 Extermination . | . . . . Reinforcement 5 | . 2 1 2 Assault 3 | . . . 3 Garrison . | . . . . Intercept . | . . . . Searches Triggered . | . . . . Construction Impeded . | . . . . Haulers Reinforced . | . . . . Active Scanning Responses . | . . . . Cargo Convoy Interrupts . | . . . . Stealth | -11 -10 -9 -9 --------- Run | Yrd Mat Mat Sto Distress Signals 5 | . 1 . 4 Communications Jammed . | . . . . Distress Signals . | . . . . Times Spotted 82 | . 21 11 50 Peak Tracking Total 8 | . 6 4 8 Tactical Retreats 2 | . 1 . 1 Traps | -11 -10 -9 -9 ------- Run | Yrd Mat Mat Sto Traps Triggered 2 | . 1 . 1 Indirectly . | . . . . Trap Hack Attempts . | . . . . Triggered . | . . . . Disarmed . | . . . . Reprogrammed . | . . . . Reused . | . . . . Traps Extracted . | . . . . Installed . | . . . . Triggered . | . . . . Machines | -11 -10 -9 -9 ---------- Run | Yrd Mat Mat Sto Machines Disabled 4 | . . . 4 Max in Single Turn 1 | . . . 1 Garrison Access 1 | . . . 1 Machines Repaired . | . . . . Machines Dismantled . | . . . . Machines Sabotaged . | . . . . Overloaded Fab Kills . | . . . . Hacking | -11 -10 -9 -9 --------- Run | Yrd Mat Mat Sto Machines Accessed 7 | . 1 1 5 Terminals 6 | . 1 1 4 Fabricators . | . . . . Repair Stations . | . . . . Recycling Units . | . . . . Scanalyzers . | . . . . Garrison Access 1 | . . . 1 Total Hacks 19 | . 4 4 11 Successful 11 | . 3 3 5 Failed 8 | . 1 1 6 Catastrophic 1 | . . . 1 Database Lockouts . | . . . . Manual 1 | . . 1 . Terminals 16 | . 4 4 8 Fabricators . | . . . . Repair Stations . | . . . . Recycling Units . | . . . . Scanalyzers . | . . . . Garrison Access 3 | . . . 3 Terminal Hacks 10 | . 3 3 4 Prototype ID Bank 1 | . . 1 . Open Door 1 | . . . 1 Emergency Access Points 1 | . 1 . . Terminal Index 1 | . . . 1 Scanalyzer Index 1 | . 1 . . Maintenance Status 1 | . . 1 . Registered Components 1 | . . . 1 Zone Layout 3 | . 1 1 1 Fabricator Hacks . | . . . . Repair Station Hacks . | . . . . Recycling Unit Hacks . | . . . . Scanalyzer . | . . . . Garrison Access Hacks 1 | . . . 1 Seal Access 1 | . . . 1 Unauthorized Hacks . | . . . . Terminals . | . . . . Fabricators . | . . . . Repair Stations . | . . . . Recycling Units . | . . . . Scanalyzers . | . . . . Garrison Access . | . . . . Data Cores Recovered . | . . . . Used . | . . . . Hacking Detections 6 | . 1 1 4 Full Trace Events . | . . . . Feedback Events . | . . . . Feedback Blocked . | . . . . Robot Schematics Acquired . | . . . . Robots Built . | . . . . Authchips . | . . . . Time . | . . . . Total Robot Build Rating . | . . . . Part Schematics Acquired . | . . . . Parts Built . | . . . . Authchips . | . . . . Time . | . . . . Total Part Build Rating . | . . . . Part Studies Acquired . | . . . . Parts Repaired . | . . . . Time . | . . . . Parts Recycled . | . . . . Recycled Matter . | . . . . Retrieved Matter . | . . . . Retrieved Components . | . . . . Parts Scanalyzed . | . . . . Part Schematics Acquired . | . . . . Parts Damaged . | . . . . Bothacking | -11 -10 -9 -9 ------------ Run | Yrd Mat Mat Sto Used RIF Installer . | . . . . Robots Hacked . | . . . . Non-combat . | . . . . Combat . | . . . . Robot Hacks Applied . | . . . . Relay Couplers Released . | . . . . Fabnet Peak Effective % . | . . . . Robots Rewired . | . . . . Allies Hacked . | . . . . Hacks Repelled . | . . . . Allies | -11 -10 -9 -9 -------- Run | Yrd Mat Mat Sto Total Allies 2 | . . . 2 Largest Group 2 | . . . 2 Highest-Rated Group 62 | . . . 62 Highest-Rated Ally 31 | . . . 31 Total Orders . | . . . . Ally Attacks 52 | . . . 52 Total Damage 846 | . . . 846 Kills 14 | . . . 14 Allies Corrupted . | . . . . Allies Melted . | . . . . Intel | -11 -10 -9 -9 ------- Run | Yrd Mat Mat Sto Active Infowar (turns) 1331 | 11 147 316 857 Terrain 1173 | . . 316 857 Seismic 158 | 11 147 . . Robot Analysis Total . | . . . . Derelict Logs Recovered . | . . . . Drone Launches . | . . . . Drone Recoveries . | . . . . Exploration | -11 -10 -9 -9 ------------- Run | Yrd Mat Mat Sto Turns Passed 1706 | 115 391 317 883 Spaces Moved 878 | 52 207 118 501 Core 10 | 5 . 4 1 Treads . | . . . . Legs 868 | 47 207 114 500 Wheels . | . . . . Hover . | . . . . Flight . | . . . . Fastest Speed 50 | 50 120 120 120 Average Speed 121 | 113 120 122 122 Slowest Speed 350 | 120 120 200 350 Overloaded Moves . | . . . . Propulsion Burnouts . | . . . . Robots Hopped . | . . . . Potential Cave-ins . | . . . . Cave-ins Triggered . | . . . . Exploration Rate (%) 36 | 6 42 15 81 Regions Visited 3 Branch Regions 1 Pre-discovered Areas . | . . . . Known Exits Taken . | . . . . Unknown Exits Taken 3 | 1 1 1 . Scrap Searched . | . . . . Spaces Dug . | . . . . Terrain Destroyed 147 | . 7 . 140 Melee . | . . . . Projectile . | . . . . AOE 147 | . 7 . 140 Terrain Rammed . | . . . . Walls Destroyed . | . . . . Machines Disabled . | . . . . Actions | -11 -10 -9 -9 --------- Run | Yrd Mat Mat Sto Total 1283 | 101 285 228 669 Wait 140 | 33 22 57 28 Move 875 | 51 206 117 501 Hop . | . . . . Pick Up 28 | 6 5 4 13 Fast Attach 13 | 6 . 3 4 Attach 18 | . 4 5 9 Detach . | . . . . Swap 19 | . 5 2 12 Drop 21 | . 5 . 16 Fire 169 | 5 38 40 86 Melee . | . . . . Ram . | . . . . Kick . | . . . . Crush . | . . . . Escape Stasis . | . . . . Rewire . | . . . . Trap . | . . . . Miscellaneous . | . . . . Route ------- -11/Scrapyard -10/Materials -9/Materials -9/Storage History --------- Turn | Location | Event 4 | -11/Scrapyard | Discovered new exit (range 14) 116 | -11/Scrapyard | Entered Materials 308 | -10/Materials | Build established: Mutant 453 | -10/Materials | Discovered new exit (range 16) 507 | -10/Materials | Entered another Materials area 507 | -9/Materials | Evolved 2 slots: Propulsion x1, Utility x1 717 | -9/Materials | Discovered new exit (range 14) 822 | -9/Materials | Lost 5 parts (1p2n2w) 824 | -9/Materials | Entered Storage 1192 | -9/Storage | Met a pair of Derelict thieves 1399 | -9/Storage | Destroyed 7 combat bots 1515 | -9/Storage | Core integrity fell below 50% 1624 | -9/Storage | First assault squad dispatched 1698 | -9/Storage | Core integrity fell below 20% 1707 | -9/Storage | Destroyed by Y-45 Defender with Heavy Assault Rifle Last Messages --------------- 01647_ M-13 Machinist unfolds itself. 01647_ Imp. Aluminum Leg destroyed. 01651_ Imp. Assault Rifle destroyed. 01651_ Critical hit (Burn: +37). 01656_ Imp. Terrain Scanner destroyed. 01656_ Hvy. Assault Rifle destroyed. 01661_ Critical hit (Smash). 01661_ Aluminum Leg destroyed. 01661_ System corrupted by crushing effect (+1). 01671_ Dropped Cld. Ion Engine. 01673_ Lgt. Armor Plating destroyed. 01694_ Terrain Scanner destroyed. 01695_ B-36 Bruiser destroyed. 01697_ K-01 Serf collects debris. 01699_ Critical hit (Burn: +37). 01699_ Lgt. Treads destroyed. 01701_ Imp. Treads destroyed. 01701_ K-01 Serf collects debris. 01703_ K-01 Serf destroyed. 01707_ Hvy. Assault Rifle destroyed. Map ----- +----------------------------------------------------+ | ####### #####??##?????????????????????? | | #?????????????????????????????? | | ###### ##########?#????#????????????????? | | # # # ] ###??????????????????????? | | # ! # + #??#??#??????????????????? | | # # #! ##???????????????????????? | | # # ##+##+###????#???????????????????? | | # / #????????????####???#??????? | | # ! # #???#?#????? #?? #??????? | | #% # #????## % #? ???????? | | # ! # #???## """" # ????????? | | # ####+##+#????## """" + ?????????? | | ####### ###???# """" #??????????? | | ??#???# ""#?#?# """" #?? ???????? | | ????#?#""" T"#?### # ?????????? | | ##????#""" ""#?#?# #??????????? | | ###???#""" ###?#?#/##+######??????????? | | ####??# ###??## #???##???##?????? | | """#??#########??### " #???##? ????????? | | Y"#????#??????????#"%" #??###????#??#??? | | """##????????#???#?# " #### #???????#??? | | ####???????????#??## # #?? ? "???#? | | #????????????????#?# # "" #? #??? #?? | | ###???##??########## # "T # ? ? ???#?? | | # #???##### "T" ### Y/#%"" #???#?#????? | | ####### ""= ### mY/@ #???###????? | | ##"G !!""" #?# ####! !!#? ???#???? | | %= ## "" [""" #?# #??# !!#???????#?#? | | % #####[*""" #?# #### #???#??????? | | ###+#??# ! #?# ##?#ggg[##########?? | | #### ########+##### #####/#### #?? | | ##??# =[+ #?? | | ##### ########### =%# #?? | | ##### # #?## !#####+###?? | | |= + #??# [ ##?#? | | ! * # ####+##+## #####??? | | # ## # #??????? | | + # " " + #??????? | | ################ ## "R" ###??????? | | ??#????????????######### """ #??????#?? | | ??????#????#?#??##????## #????????? | | ??????#?###??????#?#????########????????? | | | | | | | | | | | | | | | | | +----------------------------------------------------+ Best States ------------- Heat Dissipation 28 Energy Generation 14 Energy Capacity 280 Matter Stores 300 Matter Capacity 300 Sight Range 16 Terrain Scan Range 16 Terrain Scan Density 85 Armor Coverage 150 Evasion (%) 55 Targeting Accuracy 6 Recoil Reduction 3 Item Schematics ----------------- None Robot Schematics ------------------ None Fabricated ------------ Nothing Repaired ---------- Nothing Studied --------- None Alien Tech Used ----------------- None Achievements -------------- Overwhelming Quick And Dirty Challenges ------------ None Game ------ Seed CloakingPrecisionMediator Manual? 0 Play Time 00:33:39 Cumulative 49.7 hours Start 2025.11.05 @ 19:04:10 End 2025.11.05 @ 19:38:15 Sessions 1 Manual Loads 0 Difficulty Rogue Special Mode None Game No. 48 Rogue 43 Adventurer 0 Explorer 5 Win Type - Total 0 Types 0/0/0/0/0/0/0/0/0/0 Lore% 25 Gallery% 26 Achievement% 17 Wizard Run 0 Options --------- Layout 2 ASCII 0 Keyboard 0 Movement Mouse Keybinds 0 Fullscreen 2 Font 24/Smallcaps Map View 50x44 Zoom Use 0% Tactical HUD 1 Map Filters NONE Filters NONE Steam 1 RUN: c20100fc-faa5-4a58-b25e-7ba33c954a86